bitfinex-derivatives/quotes_SOLF0:USTF0_20260202
["timestamp","ask_amount","ask_price","bid_price","bid_amount"]
[1770001710220,66.771615,100.37,100.28,139.7527]
[1770001710826,66.771615,100.37,100.29,147.69740031]
[1770001711226,66.77205044,100.36,100.28,319.14]
[1770001711525,66.77205044,100.36,100.27,147.72010031]
[1770001711724,66.77205044,100.36,100.28,8.9839]
[1770001712122,66.77205044,100.36,100.28,148.7392]
[1770001713324,66.67637919,100.35,100.26,328.1854]
[1770001713523,66.67637919,100.38,100.29,139.741]
[1770001713722,66.67637919,100.37,100.28,139.7527]
[1770001713918,66.67637919,100.37,100.29,147.69330031]
[1770001714222,66.67637919,100.37,100.3,459.2047]
[1770001714826,66.67637919,100.37,100.3,139.7247]
[1770001715125,66.67637919,100.37,100.29,467.43330031]
[1770001715526,66.67637919,100.37,100.3,139.7256]
[1770001715719,66.67637919,100.37,100.29,467.43330031]
[1770001716124,66.67637919,100.37,100.28,460.3927]
[1770001716324,66.67637919,100.37,100.29,8.9832]
[1770001716521,66.67637919,100.37,100.29,139.7412]
[1770001716924,66.67637919,100.37,100.28,147.70910031]
[1770001717522,75.65297919,100.37,100.29,8.9832]
[1770001718227,139.6453,100.36,100.27,8.9846]
[1770001718430,66.65854669,100.35,100.27,8.9846]
[1770001718933,66.65854669,100.35,100.28,8.9841]
[1770001719327,66.65854669,100.35,100.29,8.9832]
[1770001719526,66.65854669,100.35,100.28,139.7554]
[1770001719527,66.65854669,100.35,100.27,139.7689]
[1770001720127,66.65854669,100.35,100.28,8.9841]
[1770001720828,66.65854669,100.35,100.29,8.9832]
[1770001721326,75.63674669,100.35,100.26,468.39650031]
[1770001721527,66.65854669,100.35,100.28,8.9841]
[1770001721833,66.68643693,100.38,100.3,139.7214]
[1770001722035,66.68643693,100.38,100.3,460.4014]
[1770001722633,75.66193693,100.38,100.3,320.68]
[1770001723126,75.66225577,100.36,100.27,171.99751204]
[1770001723434,75.66225577,100.36,100.27,147.72550031]
[1770001723928,66.68495577,100.34,100.26,139.7828]
[1770001724936,66.68495577,100.33,100.25,321.3]
[1770001725529,75.65942813,100.32,100.25,330.2868]
[1770001726826,66.58695515,100.3,100.24,391.2336222]
[1770001727031,66.58695515,100.3,100.22,322.7]
[1770001727229,66.58695515,100.3,100.21,139.8427]
[1770001727525,66.58695515,100.3,100.21,322.84]
[1770001727730,66.58695515,100.29,100.2,147.81172968]
[1770001727925,66.58695515,100.29,100.21,18.40760658]
[1770001728434,66.58695515,100.29,100.22,8.9893]
[1770001728929,66.58695515,100.29,100.23,8.9886]
[1770001729135,66.58695515,100.29,100.23,18.40760658]
[1770001729632,66.58144363,100.32,100.24,139.8089]
[1770001729830,66.58144363,100.32,100.24,158.21650658]
[1770001730327,8.9797,100.34,100.26,139.7828]
[1770001730631,66.58144363,100.35,100.27,158.17600658]
[1770001731028,66.58144363,100.35,100.29,8.9832]
[1770001731230,66.58144363,100.35,100.29,139.7406]
[1770001731433,66.58144363,100.35,100.28,166.11663626]
[1770001731637,66.58144363,100.35,100.28,158.16120658]
[1770001732026,66.58144363,100.35,100.29,8.9832]
[1770001732231,66.58144363,100.35,100.28,18.40760658]
[1770001732533,66.58144363,100.35,100.28,27.39170658]
[1770001732733,66.5616893,100.34,100.25,489.63923626]
[1770001733134,66.5616893,100.34,100.26,18.40760658]
[1770001733635,75.5408893,100.34,100.26,27.39350658]
[1770001734233,66.5616893,100.34,100.26,158.18590658]
[1770001734434,66.5616893,100.34,100.26,18.40760658]
[1770001734736,75.51374317,100.33,100.26,27.39330658]
[1770001734937,66.53394317,100.33,100.25,18.40760658]
[1770001735334,75.52888076,100.32,100.25,27.39440658]
[1770001736140,75.52888076,100.32,100.25,8.9868]
[1770001736842,66.54808076,100.32,100.26,8.9857]
[1770001737140,66.54808076,100.32,100.23,471.20752968]
[1770001737341,75.52878076,100.32,100.25,8.9868]
[1770001737941,75.52446218,100.3,100.22,32.22744141]
[1770001738236,75.52446218,100.3,100.22,7.95542968]
[1770001738440,66.54196218,100.29,100.2,32.22744141]
[1770001738742,8.9844,100.28,100.21,8.9897]
[1770001739037,66.54196218,100.28,100.19,323.26]
[1770001739242,66.5419861,100.27,100.2,8.9913]
[1770001739634,66.5419861,100.27,100.18,147.83902968]
[1770001740035,75.5271861,100.27,100.2,8.9912]
[1770001741142,66.54134841,100.26,100.18,8.9924]
[1770001741342,66.54134841,100.24,100.14,173.89875025]
[1770001741544,66.54134841,100.24,100.14,149.62673852]
[1770001741742,75.53024841,100.23,100.14,149.62673852]
[1770001742145,66.54134841,100.23,100.16,7.95542968]
[1770001742339,66.54134841,100.23,100.14,472.64673852]
[1770001742942,66.54134841,100.23,100.16,7.95542968]
[1770001743847,66.54134841,100.23,100.17,8.994]
[1770001744043,8.9873,100.25,100.16,147.87242968]
[1770001744350,66.51943456,100.26,100.18,147.84922968]
[1770001744743,66.51943456,100.26,100.18,7.95542968]
[1770001744940,66.51943456,100.25,100.17,323.18]
[1770001745251,66.51943456,100.25,100.16,7.95542968]
[1770001746447,75.59975521,100.24,100.17,8.9934]
[1770001746648,66.61185521,100.24,100.17,139.9086]
[1770001746849,66.61185521,100.24,100.16,147.87632968]
[1770001747052,66.61185521,100.24,100.18,8.9931]
[1770001747542,66.61185521,100.24,100.18,7.95542968]
[1770001748349,66.59526839,100.26,100.18,7.95542968]
[1770001748753,66.59526839,100.29,100.2,147.82232968]
[1770001749049,66.60678193,100.28,100.2,7.95542968]
[1770001749251,66.60678193,100.28,100.18,147.84342968]
[1770001750154,66.60678193,100.28,100.2,8.9912]
[1770001750155,75.59128193,100.28,100.2,8.9912]
[1770001750353,66.60678193,100.28,100.2,147.82002968]
[1770001750554,75.59128193,100.28,100.21,8.9904]
[1770001750754,75.59128193,100.28,100.19,139.8796]
[1770001751453,8.9852,100.27,100.2,8.9914]
[1770001751650,66.6074658,100.27,100.18,7.95542968]
[1770001751854,66.6074658,100.27,100.17,139.9088]
[1770001752255,66.6074658,100.27,100.17,149.8788]
[1770001753150,66.59162285,100.25,100.17,139.9088]
[1770001754662,66.59162285,100.25,100.17,149.8788]
[1770001755363,66.59162285,100.25,100.19,8.9923]
[1770001755564,66.59162285,100.25,100.18,147.84772968]
[1770001756361,66.59162285,100.25,100.2,8.9909]
[1770001757064,66.59162285,100.25,100.18,16.94772968]
[1770001757265,66.59162285,100.25,100.17,139.9088]
[1770001757866,66.59162285,100.25,100.17,149.8788]
[1770001758067,66.59162285,100.25,100.17,139.9088]
[1770001758367,66.59162285,100.25,100.19,8.9923]
[1770001761068,66.57330143,100.24,100.14,147.89332968]
[1770001761967,66.57330143,100.24,100.13,157.87772968]
[1770001761968,75.56821051,100.22,100.13,157.87772968]
[1770001762269,66.57851051,100.22,100.14,139.9448]
[1770001762464,66.57851051,100.22,100.16,8.9948]
[1770001762670,66.57851051,100.22,100.13,147.90772968]
[1770001762671,66.57851051,100.22,100.13,7.95542968]
[1770001762867,66.57851051,100.22,100.13,139.9638]
[1770001764167,75.57413012,100.21,100.14,8.9959]
[1770001764873,147.73802968,100.27,100.16,139.9226]
[1770001765264,8.988,100.24,100.15,470.54962968]
[1770001765570,139.7976,100.25,100.15,330.61542968]
[1770001766071,139.7976,100.25,100.15,7.95542968]
[1770001766072,147.75302968,100.25,100.15,7.95542968]
[1770001766272,380.33542968,100.25,100.17,8.9941]
[1770001766772,512.2283,100.26,100.16,139.9227]
[1770001766971,58.25182738,100.23,100.17,8.9941]
[1770001767175,58.25182738,100.23,100.14,462.7284]
[1770001767470,58.18230507,100.22,100.13,149.65251662]
[1770001767673,58.18230507,100.22,100.13,147.91572968]
[1770001768166,67.17190507,100.22,100.15,8.9959]
[1770001770072,67.17303422,100.21,100.14,8.9968]
[1770001770469,67.17383422,100.2,100.14,8.9968]
[1770001771276,58.18243422,100.2,100.14,8.9968]
[1770001771472,58.18243422,100.2,100.13,7.95542968]
[1770001771676,58.18243422,100.2,100.12,139.9785]
[1770001772377,58.18243422,100.2,100.14,8.9966]
[1770001772571,67.17393422,100.2,100.12,139.9785]
[1770001773277,58.18243422,100.2,100.13,139.9632]
[1770001773472,58.18243422,100.2,100.14,139.9502]
[1770001774272,58.18243422,100.2,100.16,8.9949]
[1770001774678,58.16457702,100.22,100.16,8.9949]
[1770001774879,58.16457702,100.24,100.18,8.9932]
[1770001775082,58.16457702,100.24,100.18,139.8938]
[1770001775376,58.16457702,100.24,100.18,8.9931]
[1770001777179,58.14467788,100.26,100.18,139.8949]
[1770001777578,67.13107788,100.26,100.18,8.9924]
[1770001778472,67.13107788,100.26,100.19,8.9922]
[1770001779373,67.13107788,100.26,100.2,8.9911]
[1770001779374,58.14467788,100.26,100.2,8.9911]
[1770001780380,58.14467788,100.26,100.21,8.9905]
[1770001780579,58.14467788,100.26,100.18,139.8947]
[1770001780978,58.14467788,100.26,100.2,8.9913]
[1770001781572,58.14467788,100.26,100.21,8.9904]
[1770001781978,58.14467788,100.26,100.2,139.8647]
[1770001782176,58.12122708,100.29,100.23,8.9886]
[1770001784181,58.11510011,100.31,100.23,147.77822968]
[1770001785080,58.11510011,100.31,100.25,8.9867]
[1770001786385,58.11510011,100.31,100.23,8.9882]
[1770001786684,58.11510011,100.31,100.22,164.11031173]
[1770001788282,67.09680011,100.31,100.24,8.9878]
[1770001788885,58.26077393,100.29,100.22,8.9887]
[1770001789088,58.26077393,100.29,100.19,172.10020586]
[1770001789289,58.26077393,100.29,100.19,147.82819413]
[1770001789489,58.26077393,100.29,100.21,8.9905]
[1770001789689,58.26077393,100.29,100.21,147.81219413]
[1770001789889,58.26077393,100.29,100.22,8.9896]
[1770001790787,58.29112685,100.27,100.2,8.9906]
[1770001791891,58.29112685,100.27,100.2,18.9606]
[1770001792584,58.29112685,100.27,100.21,8.9905]
[1770001793983,58.29112685,100.27,100.22,8.9894]
[1770001795293,58.29112685,100.27,100.22,18.9594]
[1770001795589,58.29112685,100.27,100.23,8.9887]
[1770001795794,62.31229779,100.29,100.22,157.76819413]
[1770001796488,62.31229779,100.29,100.24,8.9878]
[1770001796688,62.31229779,100.29,100.22,17.93029413]
[1770001796982,58.31229779,100.29,100.22,17.93029413]
[1770001797182,58.31229779,100.29,100.23,8.9881]
[1770001797995,67.29559779,100.29,100.22,8.9896]
[1770001800192,67.29559779,100.29,100.23,8.9887]
[1770001801292,58.31229779,100.29,100.23,8.9887]
[1770001801496,71.19980867,100.31,100.23,139.8242]
[1770001801698,71.19980867,100.31,100.24,7.96029413]
[1770001801899,58.21760867,100.29,100.22,26.91909413]
[1770001802098,58.21760867,100.29,100.22,157.76939413]
[1770001803500,58.21760867,100.29,100.24,8.9878]
[1770001804701,58.21407626,100.34,100.26,139.7828]
[1770001804901,58.21407626,100.34,100.25,139.7887]
[1770001805699,58.21407626,100.34,100.26,9.97]
[1770001805903,58.21407626,100.34,100.25,139.7887]
[1770001806404,58.19962758,100.33,100.24,354.47230586]
[1770001806601,58.19962758,100.29,100.2,32.23230586]
[1770001806806,58.19962758,100.25,100.2,8.9914]
[1770001807006,58.19962758,100.25,100.17,139.9081]
[1770001808300,58.19962758,100.25,100.19,8.9923]
[1770001809306,58.19962758,100.25,100.17,139.9081]
[1770001810003,58.19962758,100.25,100.15,462.0656]
[1770001810209,66.15992171,100.25,100.15,139.9256]
[1770001810404,66.15992171,100.25,100.15,8.9953]
[1770001810405,58.12674576,100.23,100.15,8.9953]
[1770001810807,58.12674576,100.23,100.15,139.9278]
[1770001812404,58.12674576,100.23,100.17,8.994]
[1770001812804,58.12674576,100.23,100.18,8.9931]
[1770001813111,58.12674576,100.23,100.15,139.9278]
[1770001814010,58.12674576,100.23,100.15,148.9229]
[1770001814207,58.12674576,100.23,100.15,8.9951]
[1770001814706,67.11554576,100.23,100.15,8.9951]
[1770001815104,67.11554576,100.23,100.16,8.9949]
[1770001815711,67.11554576,100.23,100.14,148.9354]
[1770001816110,67.11554576,100.23,100.14,139.9391]
[1770001816711,67.11554576,100.23,100.13,339.29729413]
[1770001816914,67.11554576,100.23,100.13,470.26479413]
[1770001818011,67.11554576,100.23,100.13,494.53680586]
[1770001818509,67.11554576,100.23,100.14,8.9966]
[1770001818912,58.10931162,100.21,100.13,24.27201173]
[1770001819113,58.10931162,100.21,100.12,173.23631173]
[1770001819318,58.10931162,100.21,100.12,33.26991173]
[1770001820417,67.10092839,100.2,100.12,8.9979]
[1770001820617,58.10932839,100.19,100.11,24.27201173]
[1770001820812,58.10932839,100.19,100.09,24.27201173]
[1770001820813,58.10932839,100.18,100.09,24.27201173]
[1770001821309,58.10932839,100.18,100.08,164.29291173]
[1770001821516,58.13366674,100.16,100.09,9.0012]
[1770001823911,58.13366674,100.16,100.09,140.0186]
[1770001824121,58.17158848,100.18,100.11,139.9898]
[1770001824520,58.17158848,100.18,100.13,8.9975]
[1770001825015,58.17158848,100.18,100.11,156.94879413]
[1770001825218,58.17158848,100.18,100.11,8.9987]
[1770001825417,58.19433453,100.17,100.09,345.57201173]
[1770001825620,67.18883453,100.17,100.09,9.0006]
[1770001827323,67.18883453,100.17,100.1,9.0004]
[1770001830621,67.18883453,100.17,100.05,150.0357]
[1770001830622,53.81997145,100.11,100.02,140.1049]
[1770001830920,53.81997145,100.07,99.956,140.208]
[1770001831227,53.81997145,100.07,99.976,9.0115]
[1770001831228,62.82337145,100.07,99.976,9.0115]
[1770001831422,62.82337145,100.07,99.98,7.96029413]
[1770001831628,62.82337145,100.07,99.984,9.0108]
[1770001831928,139.9943,100.11,100.0,7.96029413]
[1770001832122,140.0098,100.1,100.0,7.96029413]
[1770001832325,9.0015,100.09,100.0,7.96029413]
[1770001833029,507.5543,100.11,100.01,9.0083]
[1770001833226,139.9943,100.11,100.01,9.0083]
[1770001833427,140.0079,100.1,100.01,9.0083]
[1770001834427,9.0015,100.09,100.01,9.0083]
[1770001834728,9.0015,100.09,100.0,329.18029413]
[1770001834729,140.0253,100.09,100.0,7.96029413]
[1770001836223,9.0023,100.08,100.0,16.96889413]
[1770001836623,140.0361,100.08,99.98,7.96029413]
[1770001836832,140.0361,100.08,99.982,140.1715]
[1770001836833,9.003,100.08,99.982,140.1715]
[1770001837235,140.0254,100.09,99.98,7.96029413]
[1770001837436,140.0254,100.09,99.981,321.1]
[1770001837733,9.0033,100.07,99.998,9.0096]
[1770001838538,9.004,100.06,99.983,9.0109]
[1770001840034,9.0049,100.05,99.972,9.0119]
[1770001840335,9.0049,100.05,99.938,140.2335]
[1770001840336,7.96029413,100.04,99.937,140.2342]
[1770001840535,7.96029413,100.04,99.938,140.2338]
[1770001840737,9.0068,100.03,99.945,140.2238]
[1770001841633,9.0068,100.03,99.943,9.0145]
[1770001841839,9.0068,100.03,99.947,140.2203]
[1770001842138,376.0249,100.05,99.958,140.205]
[1770001842340,367.02,100.05,99.97,140.1889]
[1770001842637,506.9295,100.07,99.96,7.96029413]
[1770001842942,506.9295,100.07,99.932,140.242]
[1770001842943,148.05299413,100.04,99.932,140.242]
[1770001843240,148.05299413,100.04,99.903,140.2818]
[1770001843241,7.96029413,99.97,99.873,140.3248]
[1770001843438,367.2,99.969,99.854,140.351]
[1770001843638,140.1657,99.987,99.891,140.2997]
[1770001843837,140.1822,99.975,99.875,1.74124935]
[1770001844037,140.1944,99.967,99.87,7.96029413]
[1770001844234,140.2264,99.944,99.83,148.34459413]
[1770001844442,9.0148,99.941,99.854,9.0225]
[1770001844636,7.96029413,99.95,99.846,140.3626]
[1770001844843,140.2107,99.955,99.849,140.3584]
[1770001845036,11.94035267,100.21,99.891,140.2997]
[1770001845037,7.96029413,99.99,99.891,140.2997]
[1770001845243,140.1727,99.982,99.881,140.3125]
[1770001846045,9.012,99.971,99.888,9.0195]
[1770001846640,149.2006,99.971,99.875,9.0206]
[1770001846840,7.96029413,99.95,99.849,140.3585]
[1770001847041,7.96029413,99.93,99.845,2.77948636]
[1770001847349,149.2752,99.921,99.845,2.77948636]
[1770001847644,369.6,99.92,99.845,2.77948636]
[1770001848048,9.0169,99.917,99.845,2.77948636]
[1770001848248,7.96029413,99.93,99.848,140.3598]
[1770001848546,140.1833,99.974,99.845,2.77948636]
[1770001848547,140.2163,99.951,99.853,9.0226]
[1770001848743,370.12,99.978,99.884,140.3094]
[1770001848943,9.0117,99.975,99.886,9.0196]
[1770001849140,9.0117,99.975,99.886,149.3261]
[1770001849338,9.0117,99.975,99.886,9.0196]
[1770001849838,148.14489898,100.02,99.91,8.01899898]
[1770001850041,371.12,100.01,99.916,140.264]
[1770001850441,9.0093,100.01,99.929,9.0158]
[1770001850750,511.353,100.03,99.935,140.2367]
[1770001851849,511.353,100.03,99.945,9.0143]
[1770001852143,140.1234,100.02,99.93,8.01899898]
[1770001852648,9.0087,100.01,99.931,9.0156]
[1770001854148,9.0101,99.993,99.912,9.0173]
[1770001854447,9.0101,99.993,99.872,140.3255]
[1770001854448,8.01899898,99.98,99.858,140.3453]
[1770001854651,149.2021,99.97,99.884,9.0198]
[1770001854852,149.2021,99.97,99.866,140.3344]
[1770001855154,9.0134,99.956,99.869,149.3513]
[1770001855745,9.0134,99.956,99.884,9.0198]
[1770001856147,157.22099898,99.97,99.884,9.0198]
[1770001856353,140.2053,99.959,99.87,9.021]
[1770001856549,140.2305,99.941,99.848,140.3601]
[1770001856753,140.235,99.938,99.84,8.01899898]
[1770001856956,140.2381,99.935,99.847,9.0231]
[1770001857148,9.0155,99.933,99.847,149.3844]
[1770001857344,9.0155,99.933,99.84,8.01899898]
[1770001857345,140.195,99.966,99.871,140.3275]
[1770001857552,372.44,99.965,99.876,140.3203]
[1770001857749,372.44,99.965,99.886,140.3065]
[1770001858047,140.1985,99.964,99.879,9.0203]
[1770001858451,9.0127,99.964,99.892,9.0191]
[1770001858654,140.209,99.956,99.861,140.3418]
[1770001858949,140.236,99.937,99.852,9.0227]
[1770001859151,140.2305,99.941,99.852,9.0227]
[1770001859350,373.6,99.94,99.852,9.0227]
[1770001859549,9.0158,99.929,99.852,9.0227]
[1770001859745,373.6,99.94,99.863,9.0217]
[1770001860151,140.2145,99.952,99.845,2.77948636]
[1770001860152,140.2511,99.926,99.845,2.77948636]
[1770001860354,373.96,99.925,99.846,9.0232]
[1770001860651,373.96,99.925,99.845,2.77948636]
[1770001860960,140.3149,99.881,99.784,140.4489]
[1770001861158,374.54,99.882,99.784,140.4489]
[1770001861352,374.54,99.882,99.78,8.01899898]
[1770001861353,9.0206,99.876,99.787,9.0286]
[1770001861656,140.3325,99.868,99.767,140.474]
[1770001861861,9.0222,99.858,99.764,149.509]
[1770001862053,140.3008,99.891,99.796,140.4321]
[1770001862356,9.0207,99.875,99.784,329.28]
[1770001862757,140.3499,99.856,99.74,8.01899898]
[1770001863057,140.3499,99.856,99.72,8.01899898]
[1770001863058,140.3726,99.84,99.72,8.01899898]
[1770001863356,140.3875,99.829,99.73,8.01899898]
[1770001863551,8.01899898,99.87,99.75,8.01899898]
[1770001863756,140.3377,99.865,99.77,8.01899898]
[1770001863955,140.3479,99.857,99.77,8.01899898]
[1770001864150,376.14,99.869,99.772,9.03]
[1770001864455,526.1708,99.87,99.772,9.03]
[1770001864757,376.82,99.87,99.786,9.0287]
[1770001864955,376.82,99.87,99.782,140.4527]
[1770001865154,140.3137,99.882,99.77,8.01899898]
[1770001865155,140.3312,99.869,99.77,8.01899898]
[1770001865356,377.54,99.868,99.774,9.0298]
[1770001865548,140.3532,99.853,99.762,330.66]
[1770001865948,517.9141,99.867,99.741,140.5096]
[1770001865949,149.3953,99.84,99.741,140.5096]
[1770001866153,140.381,99.834,99.739,140.5135]
[1770001866359,9.0245,99.833,99.747,9.0322]
[1770001866749,9.0245,99.833,99.747,149.5343]
[1770001866948,149.4066,99.833,99.733,9.0335]
[1770001867358,149.4066,99.833,99.732,140.5229]
[1770001867359,149.4308,99.817,99.72,8.01899898]
[1770001867551,140.4283,99.8,99.705,140.5603]
[1770001867757,140.4157,99.809,99.717,140.5445]
[1770001867958,379.02,99.808,99.722,140.5372]
[1770001868153,379.02,99.808,99.714,140.5487]
[1770001868465,379.38,99.821,99.729,9.0338]
[1770001868961,9.0263,99.813,99.729,9.0338]
[1770001869153,140.4489,99.785,99.685,149.6274]
[1770001869351,8.01899898,99.82,99.625,2.77948636]
[1770001869352,148.47499898,99.78,99.68,8.01899898]
[1770001869555,140.4622,99.776,99.671,140.6081]
[1770001869755,140.4728,99.769,99.671,140.6081]
[1770001869954,140.4486,99.786,99.688,140.5844]
[1770001870165,140.4395,99.792,99.691,140.5812]
[1770001870458,380.58,99.791,99.691,149.6185]
[1770001870659,140.4603,99.777,99.682,140.5933]
[1770001870861,140.442,99.79,99.691,140.5812]
[1770001871160,140.442,99.79,99.656,140.6299]
[1770001871161,140.4913,99.755,99.659,140.6254]
[1770001871367,381.4,99.754,99.673,9.0389]
[1770001871569,9.0318,99.752,99.673,9.0389]
[1770001871862,9.0318,99.752,99.659,140.6254]
[1770001871863,381.4,99.754,99.659,140.6253]
[1770001872066,9.0318,99.753,99.667,140.6148]
[1770001872460,381.4,99.754,99.676,140.6023]
[1770001872759,381.4,99.754,99.67,8.01899898]
[1770001872956,381.4,99.754,99.66,140.6243]
[1770001873259,521.8939,99.754,99.66,8.01899898]
[1770001873458,381.4,99.754,99.662,140.622]
[1770001873763,381.4,99.754,99.67,8.01899898]
[1770001873764,521.8931,99.754,99.67,8.01899898]
[1770001873958,149.5465,99.74,99.67,8.01899898]
[1770001874157,149.5465,99.74,99.63,140.6663]
[1770001874158,149.5465,99.74,99.641,140.6506]
[1770001874456,382.98,99.739,99.65,8.01899898]
[1770001874656,140.5424,99.719,99.637,337.0]
[1770001874854,140.5424,99.719,99.63,8.01899898]
[1770001874855,140.5483,99.715,99.63,8.01899898]
[1770001875365,140.5486,99.715,99.62,9.0437]
[1770001875558,140.5522,99.712,99.63,8.01899898]
[1770001875763,140.5617,99.705,99.63,8.01899898]
[1770001875957,140.5522,99.712,99.63,8.01899898]
[1770001876159,384.14,99.711,99.605,1.74579604]
[1770001876367,140.5985,99.679,99.576,140.7435]
[1770001876556,140.5702,99.699,99.576,140.7435]
[1770001876557,384.42,99.678,99.6,8.01899898]
[1770001876868,140.5215,99.734,99.64,8.01899898]
[1770001877061,384.74,99.733,99.64,8.01899898]
[1770001877362,9.0338,99.73,99.641,9.0418]
[1770001877962,149.5614,99.73,99.641,9.0418]
[1770001878164,9.0338,99.73,99.641,9.0418]
[1770001878367,9.0338,99.73,99.641,149.6925]
[1770001878663,385.68,99.756,99.68,8.01899898]
[1770001879062,385.68,99.756,99.657,338.92]
[1770001879063,140.5136,99.739,99.66,8.01899898]
[1770001879258,140.5322,99.726,99.62,140.6804]
[1770001879564,9.0358,99.708,99.64,8.01899898]
[1770001879868,386.2,99.711,99.642,140.6501]
[1770001880059,9.0341,99.727,99.64,8.01899898]
[1770001880258,386.4,99.746,99.66,8.01899898]
[1770001880461,140.4926,99.754,99.66,8.01899898]
[1770001880660,140.4703,99.77,99.68,8.01899898]
[1770001880661,386.7,99.766,99.68,8.01899898]
[1770001880861,386.7,99.766,99.668,140.6134]
[1770001880862,386.7,99.766,99.7,8.01899898]
[1770001881165,536.4155,99.787,99.7,8.01899898]
[1770001881369,140.4594,99.778,99.7,8.01899898]
[1770001881760,386.94,99.787,99.7,8.01899898]
[1770001882271,386.94,99.787,99.701,7.85692481]
[1770001882468,140.4013,99.819,99.72,8.01899898]
[1770001882765,140.3982,99.821,99.72,8.01899898]
[1770001882766,140.4155,99.809,99.721,7.85692481]
[1770001882966,140.434,99.796,99.721,7.85692481]
[1770001883162,140.4588,99.778,99.722,7.85692481]
[1770001883367,149.5068,99.766,99.682,9.0381]
[1770001883567,388.24,99.765,99.683,7.87233755]
[1770001883774,388.24,99.765,99.684,7.87233755]
[1770001883974,388.24,99.765,99.685,7.87233755]
[1770001884167,9.0312,99.759,99.686,7.87233755]
[1770001884368,140.4921,99.755,99.687,7.87233755]
[1770001884567,140.4921,99.755,99.688,7.87233755]
[1770001884765,9.0333,99.736,99.689,7.87233755]
[1770001884974,9.0333,99.736,99.618,580.6833]
[1770001884975,140.5309,99.727,99.64,8.01899898]
[1770001885268,9.0366,99.7,99.641,7.88104852]
[1770001885465,9.0366,99.7,99.642,7.88104852]
[1770001885767,9.0366,99.7,99.606,140.7007]
[1770001885768,9.0366,99.7,99.643,7.88104852]
[1770001885969,9.0366,99.7,99.644,7.88104852]
[1770001886270,9.0366,99.7,99.588,140.7265]
[1770001886271,9.0377,99.687,99.59,8.01899898]
[1770001886465,388.9,99.686,99.626,7.88458136]
[1770001886665,149.6286,99.685,99.627,7.88458136]
[1770001886864,140.6168,99.666,99.548,140.7832]
[1770001887069,140.6148,99.668,99.57,8.01899898]
[1770001887268,9.0394,99.668,99.585,140.7305]
[1770001887470,9.0394,99.668,99.548,140.7832]
[1770001887471,389.32,99.667,99.565,1.74660216]
[1770001887771,140.6443,99.647,99.553,140.7758]
[1770001888073,140.6065,99.674,99.581,140.7359]
[1770001888261,140.6193,99.665,99.58,8.01899898]
[1770001888461,140.6193,99.665,99.54,148.81319898]
[1770001888462,140.6433,99.648,99.56,8.01899898]
[1770001888660,389.98,99.647,99.56,8.01899898]
[1770001888970,140.6465,99.645,99.56,8.01899898]
[1770001889171,140.6648,99.632,99.54,341.28]
[1770001889373,140.6597,99.636,99.541,140.7929]
[1770001889571,140.6483,99.644,99.541,140.7927]
[1770001889867,140.6468,99.645,99.56,8.01899898]
[1770001890168,389.98,99.647,99.57,8.01899898]
[1770001890374,140.6515,99.642,99.57,8.01899898]
[1770001890673,140.6515,99.642,99.542,140.7913]
[1770001890674,140.6608,99.635,99.539,140.7958]
[1770001890870,140.6608,99.635,99.54,8.01899898]
[1770001891173,140.676,99.624,99.527,140.8118]
[1770001891471,140.6783,99.623,99.52,8.01899898]
[1770001891667,149.7218,99.623,99.524,9.0525]
[1770001891969,9.0435,99.623,99.54,8.01899898]
[1770001892175,140.6589,99.636,99.56,8.01899898]
[1770001892474,9.0424,99.636,99.56,8.01899898]
[1770001892865,149.7014,99.636,99.56,8.01899898]
[1770001893066,149.7014,99.636,99.55,8.01899898]
[1770001893271,140.6958,99.61,99.53,8.01899898]
[1770001893469,140.7034,99.605,99.516,9.0531]
[1770001893669,9.0452,99.604,99.514,140.8303]
[1770001893869,140.6696,99.629,99.53,8.01899898]
[1770001894070,140.7402,99.579,99.505,1.74764156]
[1770001894270,140.7353,99.582,99.5,8.01899898]
[1770001894468,140.7343,99.583,99.5,8.01899898]
[1770001894663,140.7358,99.582,99.5,8.01899898]
[1770001895066,9.0474,99.58,99.5,8.01899898]